[Event "Romanian Rapid Open 2022"]
[Site "Sebes"]
[Date "2022.12.02"]
[Round "1.16"]
[White "Filip, Lucian-Ioan"]
[Black "Hoanca, Alexia-Ioana"]
[Result "1-0"]
[ECO "B36"]
[WhiteElo "2370"]
[BlackElo "1644"]
[Annotator "TA"]
[PlyCount "72"]
[EventDate "2022.12.02"]
[EventType "rapid"]
[EventCountry "ROU"]
[SourceTitle "playchess.com"]
[Source "ChessBase"]
[SourceQuality "1"]
[TimeControl "600+5"]

{[%evp 18,72,32,27,53,32,52,48,50,48,50,53,53,53,58,43,50,49,95,53,54,47,49,47,36,34,51,44,58,0,47,30,66,63,158,100,173,86,152,141,276,139,248,256,492,495,480,487,724,713,29989,29990,29996,29997,29997,29998,29998]} 1. Nf3 {[%emt 0:00:01]} Nf6 {[%emt 0:00:02]} 2. c4 {[%emt 0:00:02]} c5 {[%emt 0:00:01]} 3. Nc3 {[%emt 0:00:02]} Nc6 {[%emt 0:00:02]} 4. d4 {[%emt 0:00:04]} cxd4 {[%emt 0:00:02]} 5. Nxd4 {[%emt 0:00:02]} Nxd4 {[%emt 0:00:01]} 6. Qxd4 {[%emt 0:00:02]} d6 {[%emt 0:00:07]} 7. e4 {[%emt 0:00:30]} g6 {[%emt 0:00:03]} 8. Bg5 {[%emt 0:01:23]} Bg7 {[%emt 0:01:07]} 9. Be2 {[%emt 0:00:40] has lost popularity (9.Qd2).} O-O {[%emt 0:00:25]} 10. Qd2 {[%emt 0:00:02]} Re8 {[%emt 0:01:42] 10...a5 is the modern continuation. B36: Sicilian: Maroczy Bind: Gurgenidze System.} 11. Rc1 {[%emt 0:00:35]} Bd7 {[%emt 0:00:29]} 12. O-O {[%emt 0:00:11]} Bc6 {[%emt 0:00:07] White is slightly better.} 13. f3 {[%emt 0:00:04]} Nd7 {[%emt 0:00:34]} 14. Kh1 {[%emt 0:00:41]} a5 {[%emt 0:00:16]} 15. b3 {[%emt 0:00:01] [#]} b6 $146 {[%emt 0:00:19]} ({Predecessor:} 15... Nc5 16. Rc2 Be5 17. Rb1 f6 18. Be3 g5 19. a3 e6 20. b4 axb4 21. axb4 Na4 22. Nd1 b6 23. Nf2 Qe7 24. Nd3 h6 25. Nxe5 {1-0 (25) Cramling,P (2450)-Hansson,F (2150) Sweden 2018}) 16. Rfe1 {[%emt 0:00:25]} Rc8 {[%emt 0:00:12]} 17. Nd5 {[%emt 0:00:40]} Bxd5 {[%emt 0:00:14]} (17... Rb8 $14) 18. exd5 {[%emt 0:00:01]} Nc5 {[%emt 0:00:12]} 19. Bf1 {[%emt 0:00:20]} Qc7 {[%emt 0:00:05]} 20. Re2 {[%emt 0:00:28]} Qb7 {[%emt 0:00:42]} 21. Rce1 {[%emt 0:00:07][%cal Re2e7]} Rc7 {[%emt 0:00:02]} 22. Re3 {[%emt 0:00:32]} Rd7 {[%emt 0:00:42]} 23. R1e2 {[%emt 0:00:32]} ({Better is} 23. a3 $14) 23... h6 {[%emt 0:00:51]} (23... e5 $1 $11) 24. Bh4 {[%emt 0:00:13]} g5 {[%emt 0:00:05]} 25. Bf2 {[%emt 0:00:12][%cal Of3f4]} Bf6 {[%emt 0:01:36]} (25... e5 $14) 26. Re1 {[%emt 0:00:14]} (26. f4 $142 $1 {[%cal Rf4g5]}) 26... Kg7 {[%emt 0:00:05] [#]} (26... Rdd8 $16) 27. R3e2 {[%emt 0:01:06]} (27. f4 $1 $18 {is more deadly.}) 27... Rc7 {[%emt 0:00:37]} (27... e5 $142) 28. f4 {[%emt 0:00:32]} Nd7 {[%emt 0:00:22] [#]} (28... g4 $16 {is a better defense.} 29. Bd4 Rg8) 29. Bd4 {[%emt 0:00:15]} (29. fxg5 $1 $18 hxg5 30. Be3) 29... Bxd4 {[%emt 0:00:31]} (29... g4 $16 30. Rxe7 Rxe7 31. Rxe7 Bxd4) 30. Qxd4+ $18 {[%emt 0:00:02]} f6 $2 {[%emt 0:00:01]} (30... Nf6 31. fxg5 hxg5) 31. Rxe7+ {[%emt 0:00:03]} Rxe7 {[%emt 0:00:02]} 32. Rxe7+ {[%emt 0:00:02][%cal Be1e7,Be7h7,Bh7h8][%mdl 32]} Kf8 {[%emt 0:00:15]} (32... Kg8 $142 33. Re6 b5 34. Rxd6 bxc4 35. Bxc4 Qb4) 33. Rh7 {[%emt 0:00:37] Qd3 would kill now.} gxf4 {[%emt 0:00:06]} 34. Qxf4 {[%emt 0:00:07] White mates.} Kg8 {[%emt 0:00:30]} 35. Qxh6 {[%emt 0:00:12][%csl Gh7][%cal Rh6g7]} Nf8 {[%emt 0:00:04]} 36. Rh8+ {[%emt 0:00:03]} Kf7 {[%emt 0:00:02] Weighted Error Value: White=0.21 (precise) /Black=0.67} 1-0

[Event "Romanian Rapid Open 2022"]
[Site "Sebes"]
[Date "2022.12.02"]
[Round "1.18"]
[White "Cosma, Ioan"]
[Black "Stefan, Iulia-Cristiana"]
[Result "1/2-1/2"]
[ECO "E62"]
[WhiteElo "2368"]
[BlackElo "1662"]
[Annotator "TA"]
[PlyCount "72"]
[EventDate "2022.12.02"]
[EventType "rapid"]
[EventCountry "ROU"]
[SourceTitle "playchess.com"]
[Source "ChessBase"]
[SourceQuality "1"]
[TimeControl "600+5"]

{[%evp 21,72,15,38,26,32,17,62,24,54,39,52,52,53,31,31,14,57,26,49,17,34,-83,-1,-120,0,-177,-185,-177,-170,-177,-169,-172,-69,-225,-211,-223,-222,-242,-208,-227,-173,-181,-165,-165,-165,-166,-162,-160,-139,-137,-138,-190,-155]} 1. d4 {[%emt 0:00:03]} d6 {[%emt 0:00:01]} 2. Nf3 {[%emt 0:00:01]} g6 {[%emt 0:00:02]} 3. g3 {[%emt 0:00:03]} Bg7 {[%emt 0:00:02]} 4. Bg2 {[%emt 0:00:01]} Nf6 {[%emt 0:00:02]} 5. O-O {[%emt 0:00:02]} O-O {[%emt 0:00:04]} 6. c4 {[%emt 0:00:02]} c6 {[%emt 0:00:01]} 7. Nc3 {[%emt 0:00:02]} Bf5 {[%emt 0:00:02]} 8. b3 {[%emt 0:00:04]} Ne4 {[%emt 0:00:05]} 9. Bb2 {[%emt 0:00:01]} Nxc3 {[%emt 0:00:08]} 10. Bxc3 {[%emt 0:00:02]} Be4 {[%emt 0:00:01]} 11. e3 {[%emt 0:00:04]} d5 {[%emt 0:00:17]} 12. Qe2 {[%emt 0:00:03] E62: King's Indian: Fianchetto: 6...c6 and Panno Variation (6...Nc6) without ...a6.} Nd7 {[%emt 0:00:16]} 13. Rfc1 {[%emt 0:00:07] [#]} Rc8 $146 {[%emt 0:01:18]} ({Predecessor:} 13... e6 14. Bf1 Bxf3 15. Qxf3 Qe7 16. a4 Rfc8 17. b4 Nb6 18. c5 Nd7 19. b5 e5 {1-0 (85) Lazavik,D (2440)-Ivic,V (2581) Chess.com INT 2021}) 14. Bf1 {[%emt 0:00:14] White is slightly better.} Nf6 {[%emt 0:01:16]} 15. Bh3 {[%emt 0:00:39]} (15. Ne5 $5) 15... Bf5 {[%emt 0:01:09]} 16. Bxf5 {[%emt 0:00:25]} gxf5 {[%emt 0:00:02]} 17. Nh4 {[%emt 0:00:03]} e6 {[%emt 0:00:06]} 18. f3 {[%emt 0:00:06]} Kh8 {[%emt 0:00:19]} 19. Qb2 {[%emt 0:00:52]} Bh6 {[%emt 0:01:07]} 20. Re1 {[%emt 0:00:06]} Rg8 {[%emt 0:00:09]} 21. Qg2 {[%emt 0:00:25]} (21. Ng2 $14 {keeps the upper hand.}) 21... f4 {[%emt 0:00:58]} (21... Bg5 $17 {White must now prevent ...Bxh4.} 22. Qh3 Qf8) 22. exf4 {[%emt 0:00:13]} (22. Qh3 $1 $11) 22... Bxf4 {[%emt 0:00:05]} (22... Nh5 $1 $17 {[%cal Rh5f4] And now ...Nxf4 would win.} 23. Kf2 Bxf4) 23. Red1 $2 {[%emt 0:01:03] [#]} (23. Qh3 $1 $11) 23... Nh5 $1 $19 {[%emt 0:00:52]} 24. Be1 {[%emt 0:00:01]} Bg5 {[%emt 0:00:38]} 25. Kh1 {[%emt 0:00:43]} Bxh4 {[%emt 0:00:02]} 26. Qh3 {[%emt 0:00:01] [#]} Bxg3 {[%emt 0:00:35]} 27. Bxg3 $2 {[%emt 0:00:14] Now White is beyond hope.} ({White should play} 27. hxg3 $15 Nf6 28. c5) 27... Nxg3+ {[%emt 0:00:04] Black is clearly better.} 28. hxg3 {[%emt 0:00:02]} Qg5 {[%emt 0:00:04]} 29. Kg2 {[%emt 0:00:17]} Rg6 {[%emt 0:00:25] aiming for ...Rh6.} 30. Rd3 {[%emt 0:00:26]} Rh6 {[%emt 0:00:25]} 31. Qg4 {[%emt 0:00:14]} Qxg4 {[%emt 0:00:03]} 32. fxg4 {[%emt 0:00:01]} Rg6 {[%emt 0:00:04]} 33. Rf1 {[%emt 0:00:05]} Kg7 {[%emt 0:00:21]} ({Worse is} 33... Rxg4 34. Rxf7 Rg7 35. Rf6 $15) 34. Rf4 {[%emt 0:00:07]} f6 {[%emt 0:00:23]} 35. Re3 {[%emt 0:00:08]} Kf7 {[%emt 0:00:09]} 36. c5 {[%emt 0:00:07]} (36. Kh3 $17) 36... Rh8 {[%emt 0:00:17] Weighted Error Value: White=0.46/Black=0.32} 1/2-1/2

[Event "Romanian Rapid Open 2022"]
[Site "Sebes"]
[Date "2022.12.02"]
[Round "1.19"]
[White "Patilea, Alin-Giani"]
[Black "Talu, Mircea"]
[Result "0-1"]
[ECO "B34"]
[WhiteElo "1475"]
[BlackElo "2327"]
[Annotator "TA"]
[PlyCount "62"]
[EventDate "2022.12.02"]
[EventType "rapid"]
[EventCountry "ROU"]
[SourceTitle "playchess.com"]
[Source "ChessBase"]
[SourceQuality "1"]
[TimeControl "600+5"]

{[%evp 19,62,-62,-24,-91,51,-43,0,0,-14,0,24,26,31,21,26,0,-12,-14,0,-99,-45,-137,-136,-172,-175,-168,-122,-120,-129,-124,-131,-173,-170,-412,-420,-416,-414,-421,-414,-417,-413,-393,-400,-849,-826]} 1. e4 {[%emt 0:10:10]} c5 {[%emt 0:10:10]} 2. Nf3 {[%emt 0:00:05]} Nc6 {[%emt 0:00:05]} 3. d4 {[%emt 0:00:05]} cxd4 {[%emt 0:00:05]} 4. Nxd4 {[%emt 0:00:05]} g6 {[%emt 0:00:05]} 5. Be3 {[%emt 0:00:05]} Bg7 {[%emt 0:00:05]} 6. Nc3 {[%emt 0:00:05]} Nf6 {[%emt 0:00:05]} 7. f3 {[%emt 0:00:05]} O-O {[%emt 0:00:05]} 8. Qd2 {[%emt 0:00:05]} d5 {[%emt 0:00:05]} 9. Nxc6 {[%emt 0:00:05]} bxc6 {[%emt 0:00:05]} 10. O-O-O {[%emt 0:00:05] 10.0-0-0 is better than 10.e5.} Qa5 {[%emt 0:00:05]} 11. Kb1 {[%emt 0:00:05] [#] B34: Sicilian: Accelerated Dragon with 5 Nc3: sidelines.} (11. exd5 $11 {remains equal.} cxd5 12. Bd4 (12. Nxd5 Qxa2 13. Nxf6+ Bxf6 $17)) 11... Kh8 $146 {[%emt 0:00:05]} (11... Rb8 $17 12. b3 Rb4 13. exd5 Rd8) ({Predecessor:} 11... Rb8 12. Nxd5 Rxb2+ 13. Kxb2 Nxe4+ 14. Bd4 Nxd2 15. Nxe7+ Kh8 16. Nxc6 Bxd4+ 17. Nxd4 Qb4+ 18. Nb3 Nxf1 19. Rhxf1 {0-1 (32) Baeza Escudero,J (1877)-Sarasketa Irastortza,O (1728) Collado Villalba 2022}) 12. Bh6 {[%emt 0:00:05]} (12. exd5 $14 Rb8 13. b3 (13. dxc6 Nd5 $11)) 12... Rb8 {[%emt 0:00:05]} 13. Bxg7+ {[%emt 0:00:05] The position is equal.} (13. exd5 $2 {loses.} Bxh6 14. Qxh6 {[#]} Qxc3 $1 $19) 13... Kxg7 {[%emt 0:00:05]} 14. b3 {[%emt 0:00:05]} dxe4 {[%emt 0:00:05]} 15. Nxe4 {[%emt 0:00:05]} Qxd2 {[%emt 0:00:05]} 16. Nxd2 {[%emt 0:00:05]} Rd8 {[%emt 0:00:05]} 17. Be2 {[%emt 0:00:05]} Nd5 {[%emt 0:00:05] [#] White must now prevent ...Nc3+.} 18. Ne4 {[%emt 0:00:05] Against Nc3+} Bf5 {[%emt 0:00:05]} 19. Kb2 {[%emt 0:00:05]} (19. Rde1 $11) 19... Nf4 {[%emt 0:00:05]} (19... Bxe4 $17 20. fxe4 Ne3 21. Rxd8 Rxd8) 20. Bc4 {[%emt 0:00:05]} ({White should try} 20. Ng3 $15) 20... Nxg2 $17 {[%emt 0:00:05] aiming for ...Rxd1.} 21. Ng3 {[%emt 0:00:05]} Ne3 $36 {[%emt 0:00:05][%csl LRc2,LRc4,LRd1][%mdl 2048] Black has strong initiative.} 22. Nxf5+ {[%emt 0:00:05]} Nxf5 {[%emt 0:00:05]} (22... gxf5 $19 23. Rxd8 Nxc4+ 24. Kc3 Rxd8 25. Kxc4 Rd2) 23. Rhe1 {[%emt 0:00:05]} Kf6 {[%emt 0:00:05]} 24. Bd3 {[%emt 0:00:05]} Nd6 {[%emt 0:00:05]} 25. a4 {[%emt 0:00:05]} c5 {[%emt 0:00:05][%cal Bc6c5,Bc5c4][%mdl 32]} 26. Re2 $2 {[%emt 0:00:05]} (26. Kc3) 26... c4 $19 {[%emt 0:00:05]} 27. Be4 {[%emt 0:00:05]} cxb3 {[%emt 0:00:05]} 28. cxb3 {[%emt 0:00:05]} Nc4+ {[%emt 0:00:05]} 29. Kc1 {[%emt 0:00:05] Hoping for Rxd8.} Rxd1+ {[%emt 0:00:05]} 30. Kxd1 {[%emt 0:00:05]} Rxb3 {[%emt 0:00:05]} 31. Bd5 {[%emt 0:00:05]} (31. Bc6 $142) 31... Rd3+ {[%emt 0:00:05] Weighted Error Value: White=0.63/Black=0.23 (precise)} 0-1

[Event "Romanian Rapid Open 2022"]
[Site "Sebes"]
[Date "2022.12.02"]
[Round "1.20"]
[White "Manea, Alexandru"]
[Black "Radu, Robert-Daniel"]
[Result "1-0"]
[ECO "D53"]
[WhiteElo "2339"]
[BlackElo "1510"]
[Annotator "TA"]
[PlyCount "92"]
[EventDate "2022.12.02"]
[EventType "rapid"]
[EventCountry "ROU"]
[SourceTitle "playchess.com"]
[Source "ChessBase"]
[SourceQuality "1"]
[TimeControl "600+5"]

{[%evp 15,92,7,18,11,23,22,17,12,72,54,89,94,113,95,97,92,146,148,142,145,148,122,224,167,218,187,405,401,395,292,295,266,285,278,333,320,339,327,330,335,314,281,415,399,937,919,954,960,936,899,2777,2504,2655,2474,2189,2096,7483,6511,6031,6008,6439,6454,29974,29971,29985,29980,29985,29981,29979,29980,29986,29986,29989,29990,29990,29989,29988,29989,29989]} 1. d4 {[%emt 0:00:03]} d5 {[%emt 0:00:01]} 2. Nf3 {[%emt 0:00:03]} Nf6 {[%emt 0:00:02]} 3. Bf4 {[%emt 0:00:02]} e6 {[%emt 0:00:04]} 4. c4 {[%emt 0:00:05]} c6 {[%emt 0:00:03]} 5. e3 {[%emt 0:00:06]} Bd6 {[%emt 0:00:02]} 6. Bg5 {[%emt 0:00:02]} h6 {[%emt 0:00:02]} 7. Bh4 {[%emt 0:00:01]} O-O {[%emt 0:00:03]} 8. Nc3 {[%emt 0:00:02]} Be7 {[%emt 0:00:09]} 9. Qb3 {[%emt 0:00:07] D53: Queen's Gambit Declined: 4 Bg5 Be7: Early deviations.} Ne4 {[%emt 0:00:15]} 10. Bxe7 {[%emt 0:00:14]} Qxe7 {[%emt 0:00:02]} 11. Bd3 {[%emt 0:00:03] The position is equal.} f5 {[%emt 0:00:04] [#]} (11... Nxc3 $11 12. Qxc3 Nd7) 12. O-O $146 {[%emt 0:00:08]} ({Predecessor:} 12. Ne5 Qf6 13. Bxe4 fxe4 14. O-O b6 15. cxd5 exd5 16. Nxe4 Qe6 17. Ng3 Nd7 18. f4 Nxe5 19. fxe5 {1-0 (49) Haeggberg,M (1846)-Knauer,M (1596) Schney 2019}) 12... Nxc3 {[%emt 0:00:37]} 13. bxc3 {[%emt 0:00:03]} Nd7 {[%emt 0:00:04]} 14. cxd5 {[%emt 0:00:03]} exd5 {[%emt 0:00:19]} 15. c4 {[%emt 0:00:04]} Qd6 {[%emt 0:00:19]} ({Black should play} 15... dxc4 16. Bxc4+ (16. Qxc4+ Kh7 $16) 16... Kh7) 16. cxd5 $16 {[%emt 0:00:07]} cxd5 {[%emt 0:00:08]} 17. Rac1 {[%emt 0:00:07]} Nf6 {[%emt 0:00:19]} 18. Ne5 {[%emt 0:00:27] White is much more active. The black rooks are badly placed.} a5 {[%emt 0:01:05]} (18... Rb8 $16 19. h3 Be6) 19. a4 {[%emt 0:00:13]} Ne4 {[%emt 0:01:26]} (19... Ng4 $142) 20. Rfd1 {[%emt 0:00:44]} Qb4 $2 {[%emt 0:00:14]} (20... Rd8 {is a better defense.} 21. f3 Nf6) 21. Qxd5+ $18 {[%emt 0:00:11]} Kh7 {[%emt 0:00:23]} 22. Qc4 {[%emt 0:03:06] Prevents Nc3.} Qxc4 {[%emt 0:00:19]} 23. Bxc4 {[%emt 0:00:03]} Nd6 {[%emt 0:00:18]} 24. Bd5 {[%emt 0:00:16]} Ra6 {[%emt 0:00:19]} 25. Rb1 {[%emt 0:00:22]} Rd8 {[%emt 0:01:06]} 26. Rdc1 {[%emt 0:00:11][%cal Bd1c1,Bc1c5,Bc5c6][%mdl 32]} Bd7 {[%emt 0:01:11]} 27. Nxd7 {[%emt 0:00:13]} ({Don't do} 27. Bxb7 Nxb7 28. Rxb7 Bxa4) 27... Rxd7 {[%emt 0:00:02]} 28. Rc5 {[%emt 0:00:11]} b6 {[%emt 0:00:20]} (28... Re7 $142 29. g3 g6) 29. Rc6 {[%emt 0:00:09]} Ne4 $2 {[%emt 0:01:21]} (29... Rd8 30. g3 g6 31. Rbxb6 Rxb6) 30. Be6 {[%emt 0:00:16]} ({Stronger than} 30. Rbxb6 Rxb6 31. Bxe4 Rxc6 32. Bxc6 Rc7 $15) 30... Re7 {[%emt 0:00:28]} 31. Bxf5+ {[%emt 0:00:06]} ({Weaker is} 31. Rcxb6 Rxe6 32. Rxe6 Rxe6 $17) 31... Kg8 {[%emt 0:00:15]} 32. Bg6 {[%emt 0:00:22] [#] White threatens Rc8+ and mate.} Nf6 {[%emt 0:00:17]} 33. Rc8+ {[%emt 0:00:06]} Ne8 {[%emt 0:00:01]} 34. Bxe8 {[%emt 0:00:11] White wants to mate with Bg6+.} Kh7 {[%emt 0:01:17] Against Bg6+} 35. h4 {[%emt 0:04:33][%cal Bh2h4,Bh4h5][%mdl 32] Strongly threatening h5.} g5 {[%emt 0:00:00]} 36. h5 {[%emt 0:00:00] [#] Threatening mate with Bg6+.} Kg7 {[%emt 0:00:10]} 37. Bg6 {[%emt 0:00:10]} b5 {[%emt 0:00:05]} 38. Rxb5 {[%emt 0:00:05] Intending Rbb8 and mate.} Raa7 {[%emt 0:00:05]} 39. Rbb8 {[%emt 0:00:05] White mates.} Rac7 {[%emt 0:00:00]} 40. Rg8+ {[%emt 0:00:00]} Kf6 {[%emt 0:00:00]} 41. Rbf8+ {[%emt 0:00:00]} Ke6 {[%emt 0:00:00]} 42. e4 {[%emt 0:00:00]} Rc1+ {[%emt 0:00:01]} 43. Kh2 {[%emt 0:00:00]} Rc4 {[%emt 0:00:08]} 44. Bf5+ {[%emt 0:00:00]} Kd6 {[%emt 0:00:07]} 45. Rf6+ {[%emt 0:00:00]} Kc7 {[%emt 0:00:09]} 46. Rc8+ {[%emt 0:00:00]} Kb7 {[%emt 0:00:05] Black did not feel at home in the position after the opening.   Weighted Error Value: White=0.20 (precise) /Black=0.77} 1-0

[Event "Romanian Rapid Open 2022"]
[Site "Sebes"]
[Date "2022.12.02"]
[Round "1.21"]
[White "Roncea, Ioan-Aurel"]
[Black "Itkis, Boris"]
[Result "0-1"]
[ECO "A46"]
[WhiteElo "1461"]
[BlackElo "2343"]
[Annotator "TA"]
[PlyCount "48"]
[EventDate "2022.12.02"]
[EventType "rapid"]
[EventCountry "ROU"]
[SourceTitle "playchess.com"]
[Source "ChessBase"]
[SourceQuality "1"]
[TimeControl "600+5"]

{[%evp 9,48,-8,-5,0,7,-17,0,-24,-10,-23,-20,-28,-31,-25,0,0,0,-8,36,-51,-7,-26,0,-58,-62,-49,-62,-162,-72,-202,-98,-188,-176,-190,-139,-187,-183,-1199,-1154,-1096,-1070]} 1. d4 {[%emt 0:00:04]} Nf6 {[%emt 0:00:02]} 2. Nf3 {[%emt 0:00:02]} c5 {[%emt 0:00:03]} 3. c3 {[%emt 0:00:05]} Qc7 {[%emt 0:00:04]} 4. Bg5 {[%emt 0:00:44]} Ne4 {[%emt 0:00:02]} 5. Nbd2 {[%emt 0:00:04]} Nxg5 {[%emt 0:00:02]} 6. Nxg5 {[%emt 0:00:02] A46: 1 d4 Nf6 2 Nf3 e6: Torre, London and Colle Systems.} g6 {[%emt 0:00:38] [#]} 7. Ngf3 $146 {[%emt 0:00:05]} ({Predecessor:} 7. e3 Bg7 8. Qf3 O-O 9. Bc4 e6 10. d5 e5 11. d6 Qxd6 12. Bxf7+ Kh8 13. Qh3 {1-0 (73) Jakesevic,I (1623)-Scheve,P (1503) Wiesbaden 2018}) 7... Bg7 {[%emt 0:00:02]} 8. e3 {[%emt 0:00:09] The position is equal.} O-O {[%emt 0:00:01]} 9. Be2 {[%emt 0:00:08]} d5 {[%emt 0:00:33]} 10. O-O {[%emt 0:00:14]} Nd7 {[%emt 0:00:04]} 11. Rc1 {[%emt 0:00:08]} b6 {[%emt 0:00:17]} 12. c4 {[%emt 0:00:14]} dxc4 {[%emt 0:00:05]} 13. Bxc4 {[%emt 0:00:13][%cal Ob2b4]} Bb7 {[%emt 0:00:17] Prevents b4.} 14. Rc2 {[%emt 0:00:24]} ({White should play} 14. b4 $14) 14... Rac8 {[%emt 0:00:08]} 15. Qe2 {[%emt 0:00:10][%cal Ob2b4]} Qb8 {[%emt 0:00:07] Against b4} 16. a3 {[%emt 0:00:30]} (16. d5 $11) 16... cxd4 $15 {[%emt 0:00:05]} 17. Nxd4 {[%emt 0:00:25]} Ne5 {[%emt 0:00:12]} 18. N4f3 {[%emt 0:00:17] [#]} ({White should try} 18. Bb3 $15) 18... b5 {[%emt 0:00:25]} (18... Nxc4 $1 $19 {and Black stays clearly on top.} 19. Nxc4 Be4) 19. Nxe5 {[%emt 0:00:23]} (19. Bb3 $17) 19... Bxe5 {[%emt 0:00:07]} (19... Qxe5 $19 {has better winning chances.} 20. Bd3 Rxc2 21. Bxc2 Qxb2) 20. Bb3 {[%emt 0:00:58]} (20. f4 $17) 20... Rxc2 {[%emt 0:00:03]} 21. Bxc2 {[%emt 0:00:02]} Bxh2+ {[%emt 0:00:12] A strong pair of Bishops.} ({And not} 21... Bxb2 22. Qxb5 Be5 23. g3 $15) 22. Kh1 {[%emt 0:00:02]} Be5 {[%emt 0:00:05]} 23. Qxb5 $2 {[%emt 0:00:25] [#]} (23. Kg1) 23... Bxg2+ $1 $19 {[%emt 0:00:03][%mdl 512]} 24. Kxg2 {[%emt 0:06:17]} Qxb5 {Weighted Error Value: White=0.89/Black=0.20 (precise)} 0-1

[Event "Romanian Rapid Open 2022"]
[Site "Sebes"]
[Date "2022.12.02"]
[Round "1.22"]
[White "Ciorgovean, Iustin"]
[Black "Santimbrean, Mihnea-Nicolae"]
[Result "1-0"]
[ECO "C11"]
[WhiteElo "2319"]
[BlackElo "1491"]
[Annotator "TA"]
[PlyCount "48"]
[EventDate "2022.12.02"]
[EventType "rapid"]
[EventCountry "ROU"]
[SourceTitle "playchess.com"]
[Source "ChessBase"]
[SourceQuality "1"]
[TimeControl "600+5"]

{[%evp 11,48,7,35,19,40,32,161,149,216,39,394,404,391,385,369,375,389,349,453,389,872,623,631,534,723,707,851,738,691,738,731,738,808,803,787,788,916,890,857]} 1. e4 {[%emt 0:00:08]} e6 {[%emt 0:00:01]} 2. d4 {[%emt 0:00:02]} d5 {[%emt 0:00:02]} 3. Nc3 {[%emt 0:00:02]} Nf6 {[%emt 0:00:01]} 4. e5 {[%emt 0:00:02]} Nfd7 {[%emt 0:00:02]} 5. f4 {[%emt 0:00:01]} c5 {[%emt 0:00:03]} 6. Nf3 {[%emt 0:00:01]} Qb6 {[%emt 0:00:05]} 7. Na4 {[%emt 0:00:17] C11: French: Classical System: 4 e5 and 4 Bg5 dxe4.} Qa5+ {[%emt 0:00:05]} 8. c3 {[%emt 0:00:03]} b5 {[%emt 0:00:53]} (8... cxd4 $14 9. b4 (9. Qxd4 $2 {is the wrong capture.} b5 $19) (9. Nxd4 a6 $11) 9... Qc7) 9. Nxc5 $18 {[%emt 0:00:10] White is clearly better.} Nxc5 {[%emt 0:00:06]} (9... Bxc5 $16 10. dxc5 b4) 10. dxc5 $2 {[%emt 0:00:01] [#]} ({White has to play} 10. b4 $1 $18 {[%cal Rb4a5]} Qa4 11. dxc5 (11. bxc5 Qxd1+ 12. Kxd1 Bd7 $16)) 10... Bxc5 $2 {[%emt 0:00:03][%mdl 8192]} (10... b4 $14) 11. b4 {[%emt 0:00:11]} Bxb4 {[%emt 0:00:11]} 12. cxb4 {[%emt 0:00:01]} Qxb4+ {[%emt 0:00:04]} 13. Bd2 {[%emt 0:00:10]} Qe4+ {[%emt 0:00:39] [#]} 14. Be2 $146 {[%emt 0:00:09]} ({Predecessor:} 14. Qe2 Qc4 15. Rc1 Qxe2+ 16. Bxe2 Bd7 17. Bb4 a5 18. Bd6 b4 19. Nd4 f6 20. Nb5 Bxb5 21. Bxb5+ {1-0 (36) Santos,M (1630)-Kojima,R (1437) Sao Paulo 2016}) 14... a6 {[%emt 0:00:34]} 15. O-O {[%emt 0:00:05]} d4 $2 {[%emt 0:04:07]} (15... Nc6 16. Re1 Qa4) 16. Re1 {[%emt 0:00:34][%cal Oe2b5] White is clearly winning.} Qd5 {[%emt 0:01:01]} 17. Bd3 {[%emt 0:00:21] [#] Black must now prevent Be4.} Qd8 {[%emt 0:02:15]} 18. a4 {[%emt 0:00:12]} bxa4 {[%emt 0:01:12]} 19. Qxa4+ {[%emt 0:00:23]} Bd7 {[%emt 0:00:04]} 20. Qxd4 {[%emt 0:00:17]} Nc6 {[%emt 0:00:09]} 21. Qd6 {[%emt 0:00:13]} a5 {[%emt 0:00:07]} 22. Rec1 {[%emt 0:00:35]} Rc8 {[%emt 0:00:05]} 23. Be4 {[%emt 0:00:50]} Qb6+ {[%emt 0:00:02]} 24. Kh1 {[%emt 0:00:05]} Qc7 {[%emt 0:00:14] Weighted Error Value: White=0.74/Black=0.86} 1-0